[Event "Late-Titled-Tuesday-Blitz-September-26-2023"]
[Site "Chess.com"]
[Date "2023.09.26"]
[Round "7"]
[White "BillieKimbah"]
[Black "Druid24"]
[Result "1/2-1/2"]
[WhiteElo "2973"]
[BlackElo "2710"]
[TimeControl "180+1"]
[EndTime "15:16:18 PDT"]
[Termination "Game drawn by repetition"]

1. d4 {[%clk 0:03:00.9]} 1... Nf6 {[%clk 0:02:58.9]} 2. Nf3 {[%clk 0:03:00.9]}
2... e6 {[%clk 0:02:58.6]} 3. Bg5 {[%clk 0:03:00.4]} 3... h6 {[%clk 0:02:56.4]}
4. Bh4 {[%clk 0:03:00.4]} 4... b6 {[%clk 0:02:55.1]} 5. e3 {[%clk 0:02:56.2]}
5... Bb7 {[%clk 0:02:53]} 6. Nbd2 {[%clk 0:02:55.9]} 6... d6 {[%clk 0:02:52.7]}
7. h3 {[%clk 0:02:36.6]} 7... Nbd7 {[%clk 0:02:51.8]} 8. Bd3 {[%clk 0:02:36]}
8... g5 {[%clk 0:02:51.2]} 9. Bg3 {[%clk 0:02:35.6]} 9... Bg7 {[%clk 0:02:51.6]}
10. Qe2 {[%clk 0:02:33.1]} 10... Qe7 {[%clk 0:02:50.8]} 11. e4 {[%clk 0:02:31]}
11... e5 {[%clk 0:02:49.7]} 12. c3 {[%clk 0:02:30]} 12... O-O-O {[%clk
0:02:44.2]} 13. d5 {[%clk 0:02:23.8]} 13... Nh5 {[%clk 0:02:40.4]} 14. O-O-O
{[%clk 0:01:58.9]} 14... Nf4 {[%clk 0:02:39.5]} 15. Bxf4 {[%clk 0:01:57.7]}
15... exf4 {[%clk 0:02:40.4]} 16. Ba6 {[%clk 0:01:49.6]} 16... Rhe8 {[%clk
0:02:37.8]} 17. Rhe1 {[%clk 0:01:48.8]} 17... f5 {[%clk 0:02:28]} 18. Qb5 {[%clk
0:01:20.2]} 18... Qf7 {[%clk 0:01:59.9]} 19. Nb3 {[%clk 0:00:52.6]} 19... Nc5
{[%clk 0:01:46.6]} 20. Nxc5 {[%clk 0:00:46.4]} 20... dxc5 {[%clk 0:01:43.4]} 21.
e5 {[%clk 0:00:35.5]} 21... Kb8 {[%clk 0:01:32.2]} 22. Bxb7 {[%clk 0:00:35.2]}
22... Kxb7 {[%clk 0:01:33.1]} 23. e6 {[%clk 0:00:33.5]} 23... Qe7 {[%clk
0:01:32.4]} 24. Ne5 {[%clk 0:00:23.9]} 24... Bxe5 {[%clk 0:01:29.5]} 25. Rxe5
{[%clk 0:00:24.8]} 25... Qd6 {[%clk 0:01:29.8]} 26. Rxf5 {[%clk 0:00:24.7]}
26... Rxe6 {[%clk 0:01:24.9]} 27. Qc6+ {[%clk 0:00:21]} 27... Kb8 {[%clk
0:01:18.2]} 28. Qxd6 {[%clk 0:00:20.5]} 28... Rexd6 {[%clk 0:01:19.1]} 29. c4
{[%clk 0:00:14.2]} 29... c6 {[%clk 0:01:19.3]} 30. a4 {[%clk 0:00:13.6]} 30...
cxd5 {[%clk 0:01:19.5]} 31. cxd5 {[%clk 0:00:13.9]} 31... Kc7 {[%clk 0:01:18.9]}
32. Kc2 {[%clk 0:00:14.3]} 32... R8d7 {[%clk 0:01:17.5]} 33. Kc3 {[%clk
0:00:14.2]} 33... Re7 {[%clk 0:01:17.7]} 34. Rd2 {[%clk 0:00:14.4]} 34... a6
{[%clk 0:01:15.3]} 35. h4 {[%clk 0:00:12.5]} 35... Rg6 {[%clk 0:00:29.8]} 36.
hxg5 {[%clk 0:00:12.1]} 36... hxg5 {[%clk 0:00:30.7]} 37. a5 {[%clk 0:00:05.3]}
37... bxa5 {[%clk 0:00:28.5]} 38. d6+ {[%clk 0:00:04.7]} 38... Rxd6 {[%clk
0:00:26.6]} 39. Rxd6 {[%clk 0:00:05.4]} 39... Kxd6 {[%clk 0:00:24.4]} 40. Rxg5
{[%clk 0:00:05.9]} 40... Re2 {[%clk 0:00:23.6]} 41. Rg6+ {[%clk 0:00:06]} 41...
Kd5 {[%clk 0:00:23.1]} 42. Rg5+ {[%clk 0:00:05.9]} 42... Kc6 {[%clk 0:00:20.5]}
43. f3 {[%clk 0:00:05.6]} 43... a4 {[%clk 0:00:19]} 44. Rg4 {[%clk 0:00:05.5]}
44... Re3+ {[%clk 0:00:16.4]} 45. Kc2 {[%clk 0:00:05.5]} 45... a3 {[%clk
0:00:16.2]} 46. bxa3 {[%clk 0:00:05.8]} 46... Rxa3 {[%clk 0:00:16.9]} 47. Kb2
{[%clk 0:00:05.7]} 47... Re3 {[%clk 0:00:13.8]} 48. Rxf4 {[%clk 0:00:05.9]}
48... Re2+ {[%clk 0:00:13.4]} 49. Kb3 {[%clk 0:00:06.3]} 49... Rxg2 {[%clk
0:00:12]} 50. Rf8 {[%clk 0:00:06.9]} 50... Rg1 {[%clk 0:00:05.9]} 51. f4 {[%clk
0:00:07.1]} 51... Rb1+ {[%clk 0:00:05.1]} 52. Kc2 {[%clk 0:00:07.5]} 52... Rb4
{[%clk 0:00:04.8]} 53. f5 {[%clk 0:00:07.8]} 53... Rf4 {[%clk 0:00:03.6]} 54.
Kc3 {[%clk 0:00:08.4]} 54... Rf3+ {[%clk 0:00:02.5]} 55. Kc4 {[%clk 0:00:08.5]}
55... Rf4+ {[%clk 0:00:03.4]} 56. Kc3 {[%clk 0:00:09]} 56... Kb5 {[%clk
0:00:04]} 57. f6 {[%clk 0:00:08.8]} 57... Rf3+ {[%clk 0:00:03.4]} 58. Kc2 {[%clk
0:00:09.1]} 58... Kc4 {[%clk 0:00:04.3]} 59. Kd2 {[%clk 0:00:06.9]} 59... Rf2+
{[%clk 0:00:05.2]} 60. Ke3 {[%clk 0:00:06.9]} 60... Rf1 {[%clk 0:00:05.2]} 61.
Ke2 {[%clk 0:00:07.2]} 61... Rf5 {[%clk 0:00:05.1]} 62. Kd2 {[%clk 0:00:06.6]}
62... a5 {[%clk 0:00:05.1]} 63. f7 {[%clk 0:00:06.8]} 63... a4 {[%clk
0:00:04.4]} 64. Kc1 {[%clk 0:00:05.5]} 64... Rf2 {[%clk 0:00:04]} 65. Kb1 {[%clk
0:00:02.8]} 65... a3 {[%clk 0:00:03.2]} 66. Ra8 {[%clk 0:00:02.5]} 66... Rf1+
{[%clk 0:00:02.2]} 67. Kc2 {[%clk 0:00:02.5]} 67... Rxf7 {[%clk 0:00:03.1]} 68.
Rxa3 {[%clk 0:00:02.2]} 68... Rf2+ {[%clk 0:00:02]} 69. Kc1 {[%clk 0:00:02.7]}
69... Rf1+ {[%clk 0:00:02.9]} 70. Kc2 {[%clk 0:00:02.9]} 70... Rf2+ {[%clk
0:00:03.8]} 71. Kc1 {[%clk 0:00:03.3]} 71... Rg2 {[%clk 0:00:04.6]} 72. Rf3
{[%clk 0:00:03.2]} 72... Kb4 {[%clk 0:00:04.6]} 73. Kb1 {[%clk 0:00:03]} 73...
c4 {[%clk 0:00:04.9]} 74. Kc1 {[%clk 0:00:03.5]} 74... Rh2 {[%clk 0:00:04]} 75.
Rg3 {[%clk 0:00:03.9]} 75... c3 {[%clk 0:00:04.2]} 76. Rg8 {[%clk 0:00:04]}
76... Rh1+ {[%clk 0:00:04.7]} 77. Kc2 {[%clk 0:00:04.1]} 77... Rh2+ {[%clk
0:00:05.3]} 78. Kc1 {[%clk 0:00:04.6]} 78... Kb3 {[%clk 0:00:05.9]} 79. Rb8+
{[%clk 0:00:04.3]} 79... Kc4 {[%clk 0:00:06.4]} 80. Rc8+ {[%clk 0:00:05]} 80...
Kb3 {[%clk 0:00:07.2]} 81. Rb8+ {[%clk 0:00:05.4]} 81... Kc4 {[%clk 0:00:07.9]}
82. Rc8+ {[%clk 0:00:06]} 82... Kb3 {[%clk 0:00:08.6]} 83. Rb8+ {[%clk
0:00:06.5]} 1/2-1/2

[Event "Late-Titled-Tuesday-Blitz-September-26-2023"]
[Site "Chess.com"]
[Date "2023.09.26"]
[Round "7"]
[White "Harsha_Bharathakoti"]
[Black "ValeriyGrinev"]
[Result "1-0"]
[WhiteElo "2901"]
[BlackElo "2578"]
[TimeControl "180+1"]
[EndTime "15:16:18 PDT"]
[Termination "Harsha_Bharathakoti won by checkmate"]

1. Nf3 {[%clk 0:03:00.9]} 1... c5 {[%clk 0:02:59.8]} 2. c4 {[%clk 0:03:00.9]}
2... Nc6 {[%clk 0:02:59.7]} 3. d4 {[%clk 0:03:00.8]} 3... cxd4 {[%clk
0:02:59.4]} 4. Nxd4 {[%clk 0:03:01.7]} 4... Nf6 {[%clk 0:02:59.3]} 5. Nc3 {[%clk
0:03:02.2]} 5... e6 {[%clk 0:02:58.5]} 6. g3 {[%clk 0:03:02.5]} 6... Qb6 {[%clk
0:02:58.4]} 7. Nb3 {[%clk 0:03:02.5]} 7... Ne5 {[%clk 0:02:58.2]} 8. e4 {[%clk
0:03:02.8]} 8... Bb4 {[%clk 0:02:55.5]} 9. Qe2 {[%clk 0:03:03.1]} 9... d6 {[%clk
0:02:29.7]} 10. Bd2 {[%clk 0:03:02.9]} 10... Bd7 {[%clk 0:02:25.2]} 11. f4
{[%clk 0:02:49.6]} 11... Nc6 {[%clk 0:02:25.1]} 12. O-O-O {[%clk 0:02:38]} 12...
O-O {[%clk 0:02:17.5]} 13. e5 {[%clk 0:02:10.6]} 13... Ne8 {[%clk 0:02:16.7]}
14. exd6 {[%clk 0:01:45.2]} 14... Nxd6 {[%clk 0:02:14.5]} 15. c5 {[%clk
0:01:45.3]} 15... Bxc5 {[%clk 0:02:08.1]} 16. Na4 {[%clk 0:01:45.6]} 16... Nd4
{[%clk 0:02:04.4]} 17. Nxb6 {[%clk 0:01:23.2]} 17... Nxe2+ {[%clk 0:02:03.7]}
18. Bxe2 {[%clk 0:01:24.1]} 18... axb6 {[%clk 0:01:33.9]} 19. Nxc5 {[%clk
0:01:23.6]} 19... bxc5 {[%clk 0:01:34.3]} 20. Bc3 {[%clk 0:01:16.1]} 20... Bb5
{[%clk 0:01:33.6]} 21. Rxd6 {[%clk 0:01:12.9]} 21... Bxe2 {[%clk 0:01:33.5]} 22.
a3 {[%clk 0:01:02.4]} 22... Rfd8 {[%clk 0:01:26.5]} 23. Rd2 {[%clk 0:00:56.1]}
23... Bf3 {[%clk 0:01:09]} 24. Rxd8+ {[%clk 0:00:55]} 24... Rxd8 {[%clk
0:01:08.4]} 25. Rf1 {[%clk 0:00:55.9]} 25... Bd5 {[%clk 0:01:01.5]} 26. Rd1
{[%clk 0:00:55.6]} 26... f6 {[%clk 0:01:00.7]} 27. Rd3 {[%clk 0:00:54.6]} 27...
Kf7 {[%clk 0:01:00.4]} 28. Kd2 {[%clk 0:00:55.2]} 28... Ra8 {[%clk 0:00:56]} 29.
Ke3 {[%clk 0:00:54.8]} 29... Ra4 {[%clk 0:00:55.2]} 30. Kf2 {[%clk 0:00:53.5]}
30... b5 {[%clk 0:00:52]} 31. Bd2 {[%clk 0:00:51.6]} 31... h5 {[%clk 0:00:49.6]}
32. Be3 {[%clk 0:00:49.5]} 32... c4 {[%clk 0:00:46.3]} 33. Rd1 {[%clk
0:00:44.2]} 33... b4 {[%clk 0:00:46.8]} 34. axb4 {[%clk 0:00:44.7]} 34... Rxb4
{[%clk 0:00:47.7]} 35. Bd4 {[%clk 0:00:45.2]} 35... Rb3 {[%clk 0:00:45.6]} 36.
Bc3 {[%clk 0:00:45.5]} 36... Rb7 {[%clk 0:00:35.4]} 37. Ra1 {[%clk 0:00:42.3]}
37... Be4 {[%clk 0:00:35.4]} 38. Ke3 {[%clk 0:00:41.1]} 38... Bc2 {[%clk
0:00:34.5]} 39. Kd4 {[%clk 0:00:38.5]} 39... Bb3 {[%clk 0:00:33.5]} 40. Ra5
{[%clk 0:00:27.9]} 40... Rd7+ {[%clk 0:00:32.3]} 41. Ke3 {[%clk 0:00:27.6]}
41... Rd3+ {[%clk 0:00:32.3]} 42. Kf2 {[%clk 0:00:28.3]} 42... h4 {[%clk
0:00:31.8]} 43. Ra1 {[%clk 0:00:23.7]} 43... hxg3+ {[%clk 0:00:29.8]} 44. hxg3
{[%clk 0:00:23.7]} 44... Bd1 {[%clk 0:00:29.3]} 45. Ra7+ {[%clk 0:00:22.5]}
45... Kg6 {[%clk 0:00:29.2]} 46. Rc7 {[%clk 0:00:22.9]} 46... Bf3 {[%clk
0:00:24.5]} 47. Rxc4 {[%clk 0:00:22.4]} 47... Bd5 {[%clk 0:00:25]} 48. Rd4
{[%clk 0:00:18.1]} 48... Rf3+ {[%clk 0:00:25.1]} 49. Ke2 {[%clk 0:00:10.5]}
49... Rxg3 {[%clk 0:00:25.7]} 50. Bd2 {[%clk 0:00:09.4]} 50... Kf5 {[%clk
0:00:25.6]} 51. Rb4 {[%clk 0:00:09.9]} 51... Rg2+ {[%clk 0:00:24.6]} 52. Ke3
{[%clk 0:00:10.6]} 52... Rh2 {[%clk 0:00:20.8]} 53. Rb8 {[%clk 0:00:10.2]} 53...
Rh3+ {[%clk 0:00:20.3]} 54. Ke2 {[%clk 0:00:10.7]} 54... Bc4+ {[%clk 0:00:20]}
55. Kf2 {[%clk 0:00:11.4]} 55... Ke4 {[%clk 0:00:20]} 56. Rd8 {[%clk 0:00:11]}
56... Bd5 {[%clk 0:00:18.7]} 57. b4 {[%clk 0:00:09.1]} 57... Rh2+ {[%clk
0:00:18.9]} 58. Ke1 {[%clk 0:00:08.9]} 58... Kd3 {[%clk 0:00:18.4]} 59. f5
{[%clk 0:00:08]} 59... Rxd2 {[%clk 0:00:12.6]} 60. Kf1 {[%clk 0:00:08.7]} 60...
Rd1+ {[%clk 0:00:12.1]} 61. Kf2 {[%clk 0:00:08.4]} 61... Ke4 {[%clk 0:00:11.8]}
62. fxe6 {[%clk 0:00:08.1]} 62... Rd2+ {[%clk 0:00:11.9]} 63. Ke1 {[%clk
0:00:08.5]} 63... Rd3 {[%clk 0:00:08.7]} 64. e7 {[%clk 0:00:09.1]} 64... Re3+
{[%clk 0:00:09.3]} 65. Kf2 {[%clk 0:00:06.7]} 65... Kf4 {[%clk 0:00:08.1]} 66.
e8=Q {[%clk 0:00:06.2]} 66... Rxe8 {[%clk 0:00:08.7]} 67. Rxe8 {[%clk
0:00:06.6]} 67... Bc4 {[%clk 0:00:08.8]} 68. Rc8 {[%clk 0:00:06.5]} 68... Bd3
{[%clk 0:00:07.8]} 69. Rc3 {[%clk 0:00:06.9]} 69... Ba6 {[%clk 0:00:07.5]} 70.
Rc6 {[%clk 0:00:03.6]} 70... Bd3 {[%clk 0:00:07.2]} 71. Rc5 {[%clk 0:00:03.1]}
71... Ke4 {[%clk 0:00:07.3]} 72. b5 {[%clk 0:00:03.7]} 72... Kd4 {[%clk
0:00:08]} 73. b6 {[%clk 0:00:04.3]} 73... Kxc5 {[%clk 0:00:07.9]} 74. b7 {[%clk
0:00:04.8]} 74... Kd4 {[%clk 0:00:08.7]} 75. b8=Q {[%clk 0:00:05.7]} 75... Be4
{[%clk 0:00:09]} 76. Qf8 {[%clk 0:00:03.2]} 76... Ke5 {[%clk 0:00:08.5]} 77.
Qxg7 {[%clk 0:00:03.8]} 77... Bd5 {[%clk 0:00:08]} 78. Ke3 {[%clk 0:00:04.1]}
78... Ke6 {[%clk 0:00:07.6]} 79. Kf4 {[%clk 0:00:03.5]} 79... Bc6 {[%clk
0:00:07.2]} 80. Qc7 {[%clk 0:00:04]} 80... Bd5 {[%clk 0:00:07.5]} 81. Qb6+
{[%clk 0:00:04.5]} 81... Ke7 {[%clk 0:00:07.3]} 82. Kf5 {[%clk 0:00:05.4]} 82...
Ke8 {[%clk 0:00:06.7]} 83. Qxf6 {[%clk 0:00:06.1]} 83... Kd7 {[%clk 0:00:06.4]}
84. Ke5 {[%clk 0:00:07]} 84... Bc6 {[%clk 0:00:06.7]} 85. Qd6+ {[%clk
0:00:07.3]} 85... Ke8 {[%clk 0:00:07.2]} 86. Kf6 {[%clk 0:00:06.9]} 86... Bd5
{[%clk 0:00:07]} 87. Qe7# {[%clk 0:00:07.8]} 1-0

[Event "Late-Titled-Tuesday-Blitz-September-26-2023"]
[Site "Chess.com"]
[Date "2023.09.26"]
[Round "7"]
[White "ChristopherYoo"]
[Black "kleinebeer98"]
[Result "0-1"]
[WhiteElo "2989"]
[BlackElo "2816"]
[TimeControl "180+1"]
[EndTime "15:17:34 PDT"]
[Termination "kleinebeer98 won on time"]

1. e4 {[%clk 0:03:00.9]} 1... e5 {[%clk 0:02:59.6]} 2. Nf3 {[%clk 0:02:59.7]}
2... Nc6 {[%clk 0:02:59.8]} 3. Bb5 {[%clk 0:02:51.1]} 3... f5 {[%clk 0:03:00.1]}
4. Bxc6 {[%clk 0:02:28.6]} 4... dxc6 {[%clk 0:02:58.6]} 5. Nxe5 {[%clk 0:02:14]}
5... Qd4 {[%clk 0:02:55.2]} 6. Nf3 {[%clk 0:01:55]} 6... Qxe4+ {[%clk 0:02:55]}
7. Kf1 {[%clk 0:01:50.8]} 7... Nf6 {[%clk 0:02:55.9]} 8. Nc3 {[%clk 0:01:50.9]}
8... Qg4 {[%clk 0:02:40.6]} 9. h3 {[%clk 0:01:36.5]} 9... Qh5 {[%clk 0:02:40.3]}
10. Qe2+ {[%clk 0:01:26.1]} 10... Be7 {[%clk 0:02:37.2]} 11. b3 {[%clk
0:01:18.9]} 11... Qf7 {[%clk 0:02:12.9]} 12. Ba3 {[%clk 0:01:13.8]} 12... Ne4
{[%clk 0:02:06.2]} 13. Nxe4 {[%clk 0:01:08.9]} 13... fxe4 {[%clk 0:02:06.6]} 14.
Qxe4 {[%clk 0:01:07.4]} 14... Bf5 {[%clk 0:02:06.3]} 15. Qe5 {[%clk 0:00:56.9]}
15... Kd7 {[%clk 0:01:42.9]} 16. Bxe7 {[%clk 0:00:54.1]} 16... Rae8 {[%clk
0:01:43.5]} 17. Qd4+ {[%clk 0:00:48.3]} 17... Kc8 {[%clk 0:01:44.1]} 18. Bg5
{[%clk 0:00:40.6]} 18... b6 {[%clk 0:01:43.1]} 19. d3 {[%clk 0:00:40.4]} 19...
Rhf8 {[%clk 0:01:42]} 20. Be3 {[%clk 0:00:39.5]} 20... h6 {[%clk 0:01:41.3]} 21.
Kg1 {[%clk 0:00:37.2]} 21... g5 {[%clk 0:01:42]} 22. Re1 {[%clk 0:00:31.8]}
22... Kb7 {[%clk 0:01:38.3]} 23. Nd2 {[%clk 0:00:28.1]} 23... c5 {[%clk
0:01:31.5]} 24. Qa1 {[%clk 0:00:25.2]} 24... Bd7 {[%clk 0:01:30.2]} 25. f3
{[%clk 0:00:24.1]} 25... Bc6 {[%clk 0:01:28.2]} 26. Ne4 {[%clk 0:00:17.7]} 26...
Qf5 {[%clk 0:01:22.2]} 27. Qd1 {[%clk 0:00:15.8]} 27... h5 {[%clk 0:01:19.9]}
28. Qe2 {[%clk 0:00:12.5]} 28... g4 {[%clk 0:01:17.7]} 29. hxg4 {[%clk
0:00:12.7]} 29... hxg4 {[%clk 0:01:18.6]} 30. fxg4 {[%clk 0:00:13.4]} 30... Qe5
{[%clk 0:01:17.9]} 31. Rh5 {[%clk 0:00:12.9]} 31... Qe6 {[%clk 0:01:13.6]} 32.
Ng3 {[%clk 0:00:12.4]} 32... Rg8 {[%clk 0:01:12]} 33. Nf5 {[%clk 0:00:12.4]}
33... Qd5 {[%clk 0:01:10.7]} 34. Ne7 {[%clk 0:00:08.5]} 34... Qe6 {[%clk
0:01:05.5]} 35. Nxg8 {[%clk 0:00:08.4]} 35... Rxg8 {[%clk 0:01:06.4]} 36. Bf4
{[%clk 0:00:05.4]} 36... Qd7 {[%clk 0:00:53.6]} 37. Qe6 {[%clk 0:00:03.6]} 37...
Qd4+ {[%clk 0:00:51.9]} 38. Be3 {[%clk 0:00:03.8]} 38... Qc3 {[%clk 0:00:51.2]}
39. Bf2 {[%clk 0:00:02.9]} 39... Re8 {[%clk 0:00:50.8]} 40. Qxc6+ {[%clk
0:00:03.3]} 40... Kxc6 {[%clk 0:00:51.1]} 41. Rxe8 {[%clk 0:00:04.1]} 41... Qxc2
{[%clk 0:00:51.5]} 42. Rh6+ {[%clk 0:00:04]} 42... Kb7 {[%clk 0:00:51.6]} 43.
Re3 {[%clk 0:00:04.2]} 43... Qxa2 {[%clk 0:00:50.8]} 44. Rg6 {[%clk 0:00:02.7]}
44... Qxb3 {[%clk 0:00:49.8]} 45. Kh2 {[%clk 0:00:03]} 45... a5 {[%clk
0:00:50.3]} 46. Rf3 {[%clk 0:00:03.2]} 46... a4 {[%clk 0:00:50.5]} 47. Rg7
{[%clk 0:00:02.9]} 47... a3 {[%clk 0:00:46.2]} 48. Rff7 {[%clk 0:00:03.2]} 48...
Qxd3 {[%clk 0:00:34.8]} 49. Rxc7+ {[%clk 0:00:03.5]} 49... Ka6 {[%clk
0:00:35.6]} 50. Ra7+ {[%clk 0:00:04.1]} 50... Kb5 {[%clk 0:00:36]} 51. Bg3
{[%clk 0:00:04.3]} 51... Qc3 {[%clk 0:00:31]} 52. g5 {[%clk 0:00:04]} 52... a2
{[%clk 0:00:30.8]} 53. g6 {[%clk 0:00:03.2]} 53... a1=Q {[%clk 0:00:30.8]} 54.
Rxa1 {[%clk 0:00:02.5]} 54... Qxg7 {[%clk 0:00:29.8]} 55. Rb1+ {[%clk
0:00:03.2]} 55... Kc6 {[%clk 0:00:30.3]} 56. Re1 {[%clk 0:00:01.7]} 56... Qxg6
{[%clk 0:00:30.7]} 57. Bf4 {[%clk 0:00:02.2]} 57... c4 {[%clk 0:00:29.7]} 58.
Re5 {[%clk 0:00:01.6]} 58... c3 {[%clk 0:00:29.3]} 59. Kh3 {[%clk 0:00:01.5]}
59... c2 {[%clk 0:00:27.7]} 60. g4 {[%clk 0:00:01.9]} 60... Qd3+ {[%clk
0:00:26.7]} 61. Kh4 {[%clk 0:00:02.2]} 61... Qf1 {[%clk 0:00:26.4]} 62. Rf5
{[%clk 0:00:01.6]} 62... Qxf4 {[%clk 0:00:24.8]} 63. Rxf4 {[%clk 0:00:02.5]}
63... c1=Q {[%clk 0:00:25.3]} 64. Rf6+ {[%clk 0:00:03.3]} 64... Kb7 {[%clk
0:00:23.8]} 65. g5 {[%clk 0:00:03.5]} 65... b5 {[%clk 0:00:22.1]} 66. Kh5 {[%clk
0:00:03.9]} 66... b4 {[%clk 0:00:21.9]} 67. g6 {[%clk 0:00:03.8]} 67... Qg1
{[%clk 0:00:16.1]} 68. Kh6 {[%clk 0:00:02.6]} 68... b3 {[%clk 0:00:16]} 69. g7
{[%clk 0:00:02.5]} 69... b2 {[%clk 0:00:15.6]} 70. Rf7+ {[%clk 0:00:02.7]} 70...
Ka6 {[%clk 0:00:14.9]} 71. Rf6+ {[%clk 0:00:03.1]} 71... Ka5 {[%clk 0:00:15.1]}
72. Rf5+ {[%clk 0:00:03.4]} 72... Ka4 {[%clk 0:00:15.5]} 73. Rf4+ {[%clk
0:00:04]} 73... Ka3 {[%clk 0:00:15.9]} 74. Rf3+ {[%clk 0:00:04.5]} 74... Ka2
{[%clk 0:00:16.2]} 75. Rf8 {[%clk 0:00:04.9]} 75... b1=Q {[%clk 0:00:10.3]} 76.
g8=Q+ {[%clk 0:00:03.8]} 76... Qxg8 {[%clk 0:00:07.1]} 77. Rxg8 {[%clk
0:00:04.7]} 77... Qf5 {[%clk 0:00:06.1]} 78. Rg5 {[%clk 0:00:04.2]} 78... Qf4
{[%clk 0:00:06.3]} 79. Kg6 {[%clk 0:00:04.3]} 79... Kb3 {[%clk 0:00:07.1]} 80.
Rf5 {[%clk 0:00:04.6]} 80... Qg4+ {[%clk 0:00:06.9]} 81. Kf6 {[%clk 0:00:05.1]}
81... Kc4 {[%clk 0:00:06.7]} 82. Rg5 {[%clk 0:00:04.1]} 82... Qf4+ {[%clk
0:00:06.4]} 83. Kg6 {[%clk 0:00:04.5]} 83... Kd4 {[%clk 0:00:06.1]} 84. Rf5
{[%clk 0:00:05.1]} 84... Qg4+ {[%clk 0:00:06.4]} 85. Kf6 {[%clk 0:00:05.6]}
85... Ke4 {[%clk 0:00:06.2]} 86. Re5+ {[%clk 0:00:06.3]} 86... Kf4 {[%clk
0:00:06.8]} 87. Ra5 {[%clk 0:00:03.7]} 87... Qd7 {[%clk 0:00:06.4]} 88. Re5
{[%clk 0:00:02.2]} 88... Qd8+ {[%clk 0:00:04.6]} 89. Re7 {[%clk 0:00:02.4]}
89... Qh8+ {[%clk 0:00:04.7]} 90. Ke6 {[%clk 0:00:02.5]} 90... Ke4 {[%clk
0:00:04.9]} 91. Rf7 {[%clk 0:00:02.6]} 91... Qh6+ {[%clk 0:00:03.6]} 92. Ke7
{[%clk 0:00:02.8]} 92... Ke5 {[%clk 0:00:03.7]} 93. Ke8 {[%clk 0:00:02.5]} 93...
Qa6 {[%clk 0:00:03]} 94. Kf8 {[%clk 0:00:02.6]} 94... Ke6 {[%clk 0:00:03]} 95.
Re7+ {[%clk 0:00:02.6]} 95... Kf6 {[%clk 0:00:03.2]} 96. Rf7+ {[%clk 0:00:03.2]}
96... Kg6 {[%clk 0:00:04]} 97. Rg7+ {[%clk 0:00:03.9]} 97... Kh6 {[%clk
0:00:04.7]} 98. Rf7 {[%clk 0:00:04.4]} 98... Qd6+ {[%clk 0:00:04.7]} 99. Ke8
{[%clk 0:00:04]} 99... Qc6+ {[%clk 0:00:04.1]} 100. Kf8 {[%clk 0:00:03]} 100...
Kg6 {[%clk 0:00:04.5]} 101. Rg7+ {[%clk 0:00:03.4]} 101... Kh6 {[%clk
0:00:04.9]} 102. Rf7 {[%clk 0:00:04]} 102... Qc3 {[%clk 0:00:05.2]} 103. Re7
{[%clk 0:00:03.3]} 103... Kg6 {[%clk 0:00:05.4]} 104. Re6+ {[%clk 0:00:03.3]}
104... Kf5 {[%clk 0:00:04.8]} 105. Re7 {[%clk 0:00:04]} 105... Qc8+ {[%clk
0:00:04.3]} 106. Kf7 {[%clk 0:00:03.4]} 106... Qh8 {[%clk 0:00:05]} 107. Rd7
{[%clk 0:00:02.2]} 107... Qh7+ {[%clk 0:00:05.2]} 108. Ke8 {[%clk 0:00:02.7]}
108... Qg8+ {[%clk 0:00:04.9]} 109. Ke7 {[%clk 0:00:03.4]} 109... Ke5 {[%clk
0:00:05.6]} 110. Rc7 {[%clk 0:00:03]} 110... Qg7+ {[%clk 0:00:04.3]} 111. Kd8
{[%clk 0:00:03.5]} 111... Qf8+ {[%clk 0:00:04.8]} 112. Kd7 {[%clk 0:00:03.7]}
112... Kd5 {[%clk 0:00:05.7]} 113. Rb7 {[%clk 0:00:03]} 113... Qf7+ {[%clk
0:00:05.8]} 114. Kc8 {[%clk 0:00:03.4]} 114... Qe8+ {[%clk 0:00:06.5]} 115. Kc7
{[%clk 0:00:04]} 115... Kc5 {[%clk 0:00:07.4]} 116. Ra7 {[%clk 0:00:03.5]}
116... Qe7+ {[%clk 0:00:07.6]} 117. Kb8 {[%clk 0:00:03.7]} 117... Qd8+ {[%clk
0:00:08.3]} 118. Kb7 {[%clk 0:00:04.4]} 118... Kb5 {[%clk 0:00:09.2]} 119. Ra3
{[%clk 0:00:01.3]} 119... Qe7+ {[%clk 0:00:09.4]} 120. Ka8 {[%clk 0:00:01.7]}
120... Qxa3+ {[%clk 0:00:10.1]} 0-1

[Event "Late-Titled-Tuesday-Blitz-September-26-2023"]
[Site "Chess.com"]
[Date "2023.09.26"]
[Round "8"]
[White "vova-79"]
[Black "Taran2004"]
[Result "1-0"]
[WhiteElo "2602"]
[BlackElo "2447"]
[TimeControl "180+1"]
[EndTime "15:20:39 PDT"]
[Termination "vova-79 won by resignation"]

1. d4 {[%clk 0:03:00.9]} 1... Nf6 {[%clk 0:02:59.9]} 2. c4 {[%clk 0:03:00.9]}
2... c5 {[%clk 0:03:00]} 3. Nf3 {[%clk 0:03:00.3]} 3... cxd4 {[%clk 0:03:00]} 4.
Nxd4 {[%clk 0:03:01.2]} 4... Nc6 {[%clk 0:03:00.2]} 5. g3 {[%clk 0:03:00.7]}
5... g6 {[%clk 0:02:59.6]} 6. Bg2 {[%clk 0:03:00.1]} 6... Bg7 {[%clk 0:02:59.7]}
7. O-O {[%clk 0:03:00.2]} 7... O-O {[%clk 0:02:57.1]} 8. Nc3 {[%clk 0:03:00.3]}
8... a6 {[%clk 0:02:56]} 9. c5 {[%clk 0:02:58.7]} 9... Nxd4 {[%clk 0:02:51.8]}
10. Qxd4 {[%clk 0:02:59.6]} 10... d6 {[%clk 0:02:48.9]} 11. cxd6 {[%clk
0:02:58.2]} 11... Qxd6 {[%clk 0:02:43.8]} 12. Qxd6 {[%clk 0:02:57.1]} 12... exd6
{[%clk 0:02:44.7]} 13. Bf4 {[%clk 0:02:51.3]} 13... Bg4 {[%clk 0:02:38.4]} 14.
Bxd6 {[%clk 0:02:39.7]} 14... Rfd8 {[%clk 0:02:36.2]} 15. Bf4 {[%clk 0:02:32]}
15... Nh5 {[%clk 0:02:30.2]} 16. Bg5 {[%clk 0:02:19.2]} 16... f6 {[%clk
0:02:28.7]} 17. Be3 {[%clk 0:02:14.9]} 17... Bc8 {[%clk 0:02:17.4]} 18. Rfd1
{[%clk 0:02:12.9]} 18... Rxd1+ {[%clk 0:02:15.2]} 19. Rxd1 {[%clk 0:02:13]}
19... f5 {[%clk 0:02:15.3]} 20. Rd8+ {[%clk 0:02:02.5]} 20... Kf7 {[%clk
0:02:14.7]} 21. Nd5 {[%clk 0:01:57.1]} 21... Bxb2 {[%clk 0:02:09.4]} 22. Nb6
{[%clk 0:01:56.5]} 1-0